bitfinex/quotes_BTCUSD_20251212
["timestamp","ask_amount","ask_price","bid_price","bid_amount"]
[1765559716649,0.01836801,90487.0,90447.0,0.62424323]
[1765559717206,0.2504442,90488.0,90447.0,0.62424323]
[1765559717409,0.02941932,90487.0,90447.0,0.62424323]
[1765559717616,0.01105143,90486.0,90447.0,0.62424323]
[1765559717807,0.01105167,90484.0,90447.0,0.60664323]
[1765559718012,0.01105118,90488.0,90447.0,0.62424323]
[1765559718212,0.02941919,90488.0,90447.0,0.62424323]
[1765559718413,0.01105155,90485.0,90447.0,0.62424323]
[1765559718593,0.01105143,90486.0,90447.0,0.62624323]
[1765559718997,0.02296,90480.0,90447.0,0.58305523]
[1765559719197,0.23210384,90477.0,90447.0,0.58305523]
[1765559719538,0.01128,90467.0,90447.0,0.28852484]
[1765559719878,11.58707,90500.0,90499.0,0.22099691]
[1765559722248,11.58707,90500.0,90499.0,0.26418491]
[1765559723417,11.58707,90500.0,90497.0,0.01105009]
[1765559723570,0.11050762,90499.0,90497.0,0.23204955]
[1765559723779,11.58707,90500.0,90497.0,0.23204955]
[1765559724528,0.01522,90498.0,90494.0,0.01105045]
[1765559724793,0.01522,90498.0,90496.0,0.22100424]
[1765559725002,0.03988,90497.0,90491.0,0.01105082]
[1765559725325,11.58907,90500.0,90497.0,0.01105009]
[1765559725528,11.58861653,90500.0,90499.0,0.22099691]
[1765559725886,11.58961653,90500.0,90499.0,0.22099691]
[1765559726623,11.61327653,90500.0,90497.0,0.01105009]
[1765559726823,0.02626996,90498.0,90489.0,0.22102102]
[1765559727106,0.01131,90494.0,90489.0,0.22102102]
[1765559727270,0.01131,90494.0,90493.0,0.23206213]
[1765559728617,0.01131,90494.0,90490.0,0.01105094]
[1765559728618,0.06224045,90494.0,90490.0,0.01105094]
[1765559728819,0.05119,90494.0,90492.0,0.22101401]
[1765559729042,11.87777,90500.0,90499.0,0.22099691]
[1765559729168,11.58707,90500.0,90499.0,0.22099691]
[1765559730586,11.58707,90500.0,90499.0,0.26418491]
[1765559731330,11.58807,90500.0,90499.0,0.22099691]
[1765559731633,11.58807,90500.0,90499.0,0.26579778]
[1765559731797,11.58707,90500.0,90499.0,0.22099691]
[1765559731957,11.58707,90500.0,90499.0,0.26418491]
[1765559732711,11.58707,90500.0,90499.0,0.26518491]
[1765559732913,11.58707,90500.0,90499.0,0.22199691]
[1765559733060,11.58861653,90500.0,90499.0,0.22199691]
[1765559733263,11.58861653,90500.0,90499.0,0.24059691]
[1765559733540,11.61327653,90500.0,90499.0,0.002]
[1765559734021,11.61327653,90500.0,90499.0,0.001]
[1765559734630,11.61327653,90500.0,90497.0,0.01105009]
[1765559734858,0.01522,90498.0,90497.0,0.01105009]
[1765559735189,0.03988,90498.0,90495.0,0.01105033]
[1765559735423,0.01522,90496.0,90492.0,0.0110507]
[1765559735810,0.01522,90496.0,90495.0,0.22100668]
[1765559736003,0.03988,90496.0,90495.0,0.22100668]
[1765559736209,0.01522,90496.0,90495.0,0.22100668]
[1765559736431,0.03988,90496.0,90493.0,0.23205976]
[1765559736634,0.01522,90494.0,90493.0,0.23205976]
[1765559737492,0.001,90496.0,90495.0,0.22100668]
[1765559737867,0.002,90496.0,90495.0,0.22100668]
[1765559738046,0.002,90496.0,90493.0,0.23205976]
[1765559738250,0.04188,90496.0,90495.0,0.22100668]
[1765559738636,0.03988,90496.0,90495.0,0.22100668]
[1765559738845,11.58707,90500.0,90499.0,0.22099691]
[1765559739562,0.04311499,90498.0,90497.0,0.01105009]
[1765559739765,0.05833499,90498.0,90497.0,0.01105009]
[1765559739968,0.08299499,90498.0,90497.0,0.01105009]
[1765559740150,0.04136708,90498.0,90497.0,0.01105009]
[1765559740536,0.01670708,90498.0,90497.0,0.01105009]
[1765559740737,0.00148708,90498.0,90497.0,0.01105009]
[1765559741640,0.00148708,90498.0,90497.0,0.05981704]
[1765559742037,0.00348708,90498.0,90497.0,0.01105009]
[1765559742346,0.04336708,90498.0,90497.0,0.01105009]
[1765559743165,0.01870708,90498.0,90497.0,0.01105009]
[1765559743374,0.04336708,90498.0,90497.0,0.01105009]
[1765559744151,0.01105082,90491.0,90487.0,0.01105131]
[1765559744350,0.02653,90486.0,90485.0,0.01105155]
[1765559744785,0.05119,90486.0,90485.0,0.01105155]
[1765559745750,0.05219,90486.0,90485.0,0.01105155]
[1765559746172,0.05219,90486.0,90482.0,0.01105192]
[1765559746425,0.01522,90483.0,90480.0,0.01105216]
[1765559746571,0.01522,90483.0,90481.0,0.22104088]
[1765559747117,0.03988,90482.0,90481.0,0.01105204]
[1765559747320,0.01522,90482.0,90481.0,0.23209292]
[1765559747870,0.03988,90482.0,90481.0,0.23209292]
[1765559748698,0.04088,90482.0,90481.0,0.23209292]
[1765559749699,0.003,90482.0,90481.0,0.23209292]
[1765559750033,0.003,90482.0,90481.0,0.23370579]
[1765559750267,0.003,90482.0,90481.0,0.27689379]
[1765559750682,0.002,90482.0,90481.0,0.27689379]
[1765559750906,0.01034916,90498.0,90496.0,0.22100248]
[1765559751106,0.01034916,90499.0,90498.0,0.22099935]
[1765559751364,0.0156,90497.0,90496.0,0.23205269]
[1765559751935,0.03858,90497.0,90496.0,0.23205269]
[1765559752909,0.03858,90497.0,90489.0,0.23206993]
[1765559752910,0.11855451,90497.0,90493.0,0.01105057]
[1765559753104,0.0156,90491.0,90490.0,0.01105094]
[1765559753520,0.03858,90491.0,90490.0,0.01105094]
[1765559753723,0.002,90497.0,90494.0,0.01105045]
[1765559754097,0.002,90497.0,90496.0,0.22100424]
[1765559754263,11.58707,90500.0,90499.0,0.22099691]
[1765559755835,11.58907,90500.0,90499.0,0.22099691]
[1765559756237,11.59061653,90500.0,90499.0,0.22099691]
[1765559757384,11.59361653,90500.0,90499.0,0.22099691]
[1765559759652,11.61659653,90500.0,90499.0,0.22099691]
[1765559760361,11.61659653,90500.0,90497.0,0.01105009]
[1765559760512,0.04134801,90499.0,90498.0,0.22099703]
[1765559761036,11.59207,90500.0,90498.0,0.22099703]
[1765559761357,11.58707,90500.0,90498.0,0.22099703]
[1765559761573,11.59207,90500.0,90498.0,0.22099703]
[1765559761859,11.59007,90500.0,90499.0,0.043188]
[1765559762000,11.58707,90500.0,90499.0,0.043188]
[1765559762202,11.59207,90500.0,90499.0,0.043188]
[1765559762656,11.59207,90500.0,90499.0,0.06240087]
[1765559763272,11.59207,90500.0,90499.0,0.40311926]
[1765559763668,11.59207,90500.0,90499.0,0.33550087]
[1765559763874,11.58707,90500.0,90499.0,0.35310087]
[1765559764034,11.59007,90500.0,90499.0,0.35310087]
[1765559764238,11.59207,90500.0,90499.0,0.06240087]
[1765559764440,11.59007,90500.0,90499.0,0.06240087]
[1765559764681,11.58707,90500.0,90498.0,0.22099703]
[1765559765015,11.58707,90500.0,90499.0,0.004]
[1765559765151,11.58707,90500.0,90499.0,0.002]
[1765559765353,11.58707,90500.0,90498.0,0.22099859]
[1765559765556,11.61005,90500.0,90499.0,0.001]
[1765559765756,11.58707,90500.0,90499.0,0.001]
[1765559766346,11.58861653,90500.0,90499.0,0.001]
[1765559766985,11.58861653,90500.0,90497.0,0.23205137]
[1765559767182,11.58707,90500.0,90497.0,0.23205137]
[1765559767385,11.58907,90500.0,90499.0,0.22099691]
[1765559767772,11.58707,90500.0,90499.0,0.26418491]
[1765559768156,11.58707,90500.0,90499.0,0.22099691]
[1765559768157,11.58807,90500.0,90499.0,0.22099691]
[1765559768608,11.58707,90500.0,90499.0,0.26418491]
[1765559769395,11.58707,90500.0,90499.0,0.55488491]
[1765559769601,11.58707,90500.0,90499.0,0.55649778]
[1765559769998,11.58707,90500.0,90499.0,0.51169691]
[1765559770202,11.58707,90500.0,90499.0,0.22099691]
[1765559770407,11.58707,90500.0,90499.0,0.26518491]
[1765559771116,11.58707,90500.0,90499.0,0.26779778]
[1765559771286,11.58707,90500.0,90499.0,0.22299691]
[1765559771891,11.58707,90500.0,90499.0,0.26618491]
[1765559772569,10.34447802,90500.0,90499.0,0.31781617]
[1765559772801,7.6224196,90500.0,90499.0,0.33441248]
[1765559772997,6.735871,90500.0,90499.0,0.33441248]
[1765559773173,6.389379,90500.0,90499.0,0.68593492]
[1765559773353,6.20347536,90500.0,90499.0,0.70253492]
[1765559773566,5.81233745,90500.0,90499.0,0.70153492]
[1765559773767,5.5696429,90500.0,90499.0,0.70353492]
[1765559773963,5.39286915,90500.0,90499.0,0.70553492]
[1765559774166,5.23521278,90500.0,90499.0,0.68593492]
[1765559774386,5.16671888,90500.0,90499.0,0.70153492]
[1765559774593,4.93193214,90500.0,90499.0,0.70153492]
[1765559774762,4.81963771,90500.0,90499.0,0.70853492]
[1765559774960,4.52892197,90500.0,90499.0,0.70853492]
[1765559775204,3.95585917,90500.0,90499.0,0.70153492]
[1765559775413,3.8047051,90500.0,90499.0,0.70153492]
[1765559775749,3.30005937,90500.0,90499.0,0.70153492]
[1765559775876,2.93051687,90500.0,90499.0,0.70853492]
[1765559776078,2.67995053,90500.0,90499.0,0.70853492]
[1765559776316,2.63575731,90500.0,90499.0,0.76751136]
[1765559776546,2.50199934,90500.0,90499.0,0.66534692]
[1765559776727,2.08299952,90500.0,90499.0,0.71553492]
[1765559776927,1.63440967,90500.0,90499.0,0.71553492]
[1765559777132,1.59021645,90500.0,90499.0,0.70153492]
[1765559777300,1.59021645,90500.0,90499.0,1.10753492]
[1765559777500,1.28976332,90500.0,90499.0,1.07034692]
[1765559777704,1.28976332,90500.0,90499.0,1.09593492]
[1765559777910,1.28976332,90500.0,90499.0,0.69593492]
[1765559778114,1.28976332,90500.0,90499.0,0.86053492]
[1765559778425,1.28976332,90500.0,90499.0,0.84293492]
[1765559778625,1.28976332,90500.0,90499.0,0.85453492]
[1765559779145,1.28976332,90500.0,90499.0,0.84293492]
[1765559779373,0.60319094,90500.0,90499.0,0.86053492]
[1765559779647,0.17917756,90500.0,90499.0,0.85453492]
[1765559779854,0.17917756,90500.0,90499.0,0.86053492]
[1765559779855,0.03707231,90500.0,90499.0,0.86053492]
[1765559780055,0.0002,90520.0,90519.0,0.60485447]
[1765559780218,0.0002,90520.0,90519.0,0.62406734]
[1765559780636,0.00079452,90520.0,90519.0,0.62406734]
[1765559781037,0.00079452,90520.0,90519.0,0.60646734]
[1765559781353,0.00079452,90520.0,90519.0,0.60946734]
[1765559781566,0.00079452,90520.0,90519.0,0.63006734]
[1765559783152,0.00079452,90520.0,90519.0,0.64687211]
[1765559783938,0.05,90527.0,90519.0,0.64687211]
[1765559783939,1e-08,90527.0,90526.0,0.09320639]
[1765559784180,0.00038805,90527.0,90526.0,0.62374022]
[1765559784493,0.00038805,90527.0,90526.0,0.60645026]
[1765559784675,0.00038805,90527.0,90526.0,0.61737464]
[1765559784883,0.03446,90599.0,90566.0,0.043188]
[1765559785058,0.03446,90599.0,90583.0,0.01103959]
[1765559785059,0.00010737,90599.0,90583.0,0.01103959]
[1765559785242,0.00010737,90599.0,90566.0,0.00161287]
[1765559785243,0.01103789,90597.0,90584.0,0.0176]
[1765559785451,0.01103838,90593.0,90575.0,0.043188]
[1765559785700,0.01836801,90592.0,90576.0,0.0176]
[1765559785998,0.01103886,90589.0,90576.0,0.0176]
[1765559786140,0.01836801,90590.0,90581.0,0.01103984]
[1765559786346,0.03446,90608.0,90576.0,0.01921287]
[1765559786347,0.00010737,90599.0,90593.0,0.01103838]
[1765559786553,0.00010737,90599.0,90590.0,0.0176]
[1765559786748,0.00010737,90599.0,90596.0,0.23179595]
[1765559786952,0.00010737,90599.0,90596.0,0.27498395]
[1765559787808,0.00010737,90599.0,90598.0,0.043188]
[1765559788257,0.00010737,90599.0,90598.0,0.060788]
[1765559788430,0.00110737,90599.0,90598.0,0.060788]
[1765559788833,0.00010737,90599.0,90598.0,0.060788]
[1765559789248,0.00110737,90599.0,90598.0,0.060788]
[1765559789440,0.00110737,90599.0,90598.0,0.043188]
[1765559789619,0.00110737,90599.0,90598.0,0.060788]
[1765559789803,0.00345341,90599.0,90598.0,0.0176]
[1765559790011,0.00345341,90599.0,90598.0,0.060788]
[1765559790423,0.00345341,90599.0,90598.0,0.06240087]
[1765559790625,0.0002,90620.0,90599.0,0.60465937]
[1765559790626,1.35758757,90600.0,90599.0,0.60465937]
[1765559790833,1.04064911,90600.0,90599.0,0.60627224]
[1765559791030,0.67946487,90600.0,90599.0,0.60627224]
[1765559791335,0.0002,90620.0,90619.0,0.55459226]
[1765559791531,0.0002,90620.0,90619.0,0.62382352]
[1765559791731,9e-05,90658.0,90657.0,0.22061175]
[1765559791960,0.00047749,90658.0,90644.0,0.01103216]
[1765559792162,0.00047749,90658.0,90645.0,0.22064096]
[1765559792402,0.00047749,90658.0,90649.0,0.043188]
[1765559792609,0.00047749,90658.0,90650.0,0.0176]
[1765559792781,0.00047749,90658.0,90644.0,0.01103216]
[1765559792982,0.00047749,90658.0,90645.0,0.01103204]
[1765559793164,0.00047749,90658.0,90647.0,0.0110318]
[1765559793363,0.00047749,90658.0,90647.0,0.23166621]
[1765559793561,0.00047749,90658.0,90652.0,0.01103119]
[1765559793802,0.00047749,90658.0,90655.0,0.01103083]
[1765559794003,0.00047749,90658.0,90653.0,0.01103107]
[1765559794166,0.00047749,90658.0,90654.0,0.01103095]
[1765559794366,0.00047749,90658.0,90645.0,0.0176]
[1765559794565,0.03087596,90658.0,90646.0,0.0176]
[1765559794827,0.03087596,90658.0,90631.0,0.2907]
[1765559794828,0.03008117,90658.0,90625.0,0.01103448]
[1765559795004,0.03008117,90658.0,90633.0,0.0110335]
[1765559795005,0.01103095,90654.0,90633.0,0.0110335]
[1765559795204,0.01103131,90651.0,90630.0,0.05422187]
[1765559795405,0.01489028,90650.0,90634.0,0.01103338]
[1765559795618,0.01836801,90653.0,90635.0,0.01103326]
[1765559795937,0.01836801,90653.0,90636.0,0.01756]
[1765559795938,0.08373119,90652.0,90636.0,0.01756]
[1765559796141,0.02778604,90651.0,90635.0,0.01103326]
[1765559796296,0.02778604,90651.0,90638.0,0.0110329]
[1765559796496,0.0727,90650.0,90634.0,0.02859338]
[1765559796715,0.01023567,90649.0,90637.0,0.01103302]
[1765559796913,0.01023567,90649.0,90640.0,0.01103265]
[1765559797116,0.01023567,90649.0,90642.0,0.01103241]
[1765559797315,0.00047749,90658.0,90642.0,0.01103241]
[1765559797316,0.01071316,90658.0,90644.0,0.01103216]
[1765559797518,0.001,90651.0,90642.0,0.01103241]
[1765559797746,0.00136476,90645.0,90642.0,0.01103241]
[1765559797971,0.01023567,90656.0,90645.0,0.01103204]
[1765559798166,0.00130545,90643.0,90641.0,0.01103253]
[1765559798388,0.01836801,90655.0,90640.0,0.043188]
[1765559798389,0.002,90649.0,90640.0,0.043188]
[1765559798579,0.002,90649.0,90637.0,0.05422102]
[1765559798818,0.002,90649.0,90637.0,0.01103302]
[1765559799030,0.02860368,90653.0,90638.0,0.043188]
[1765559799232,0.2907,90651.0,90613.0,0.03314256]
[1765559799434,0.2907,90651.0,90635.0,0.01103326]
[1765559799435,0.01023567,90650.0,90635.0,0.01103326]
[1765559799770,0.01023567,90650.0,90639.0,0.01103277]
[1765559799940,0.01023567,90650.0,90635.0,0.01103326]
[1765559800137,0.01023567,90650.0,90605.0,0.51143604]
[1765559800138,0.01836801,90649.0,90632.0,0.23170458]
[1765559800346,0.01836801,90649.0,90634.0,0.043188]
[1765559800619,0.01103204,90645.0,90634.0,0.043188]
[1765559800821,0.0282339,90647.0,90630.0,0.01103387]
[1765559800948,0.1009339,90647.0,90628.0,0.01756]
[1765559801155,0.01103204,90645.0,90626.0,0.01824602]
[1765559801357,0.01023567,90646.0,90618.0,0.043188]
[1765559801358,0.0110329,90638.0,90618.0,0.043188]
[1765559801558,0.04311499,90643.0,90613.0,0.04481835]
[1765559801559,0.01103363,90632.0,90613.0,0.04481835]
[1765559801874,0.01023567,90633.0,90614.0,0.01103582]
[1765559802089,0.01103375,90631.0,90613.0,0.03378241]
[1765559802292,0.01103399,90629.0,90610.0,0.0110363]
[1765559802514,0.01103484,90622.0,90606.0,0.01756]
[1765559802832,0.0727,90628.0,90606.0,0.01756]
[1765559802833,0.01023567,90627.0,90613.0,0.01103594]
[1765559803079,0.01023567,90627.0,90616.0,0.01103557]
[1765559803080,0.03446,90626.0,90616.0,0.01103557]
[1765559803251,0.01023567,90625.0,90611.0,0.01103618]
[1765559803454,0.01062292,90625.0,90604.0,0.2207408]
[1765559803656,0.01103472,90623.0,90603.0,0.01103716]
[1765559803799,0.01023567,90623.0,90608.0,0.01103655]
[1765559804010,0.0727,90622.0,90609.0,0.01103643]
[1765559804214,0.0727,90622.0,90606.0,0.22073575]
[1765559804215,0.01023567,90621.0,90606.0,0.01103679]
[1765559804409,0.01023567,90621.0,90605.0,0.01103691]
[1765559804655,0.01103557,90616.0,90598.0,0.00049371]
[1765559804854,0.01103545,90617.0,90600.0,0.02859752]
[1765559805056,0.08373533,90618.0,90601.0,0.0110374]
[1765559805257,0.01023567,90617.0,90600.0,0.02859752]
[1765559805459,0.22071157,90616.0,90598.0,0.00049371]
[1765559805648,0.01023567,90615.0,90599.0,0.01103764]
[1765559805823,0.08293567,90615.0,90601.0,0.0110374]
[1765559806032,0.01023567,90614.0,90600.0,0.01103752]
[1765559806253,0.01023567,90614.0,90598.0,0.2322859]
[1765559806254,0.03813959,90614.0,90598.0,0.00049371]
[1765559806455,0.04311499,90611.0,90598.0,0.00049371]
[1765559806632,0.01023567,90610.0,90602.0,0.01103728]
[1765559806858,0.01023567,90612.0,90605.0,0.01103691]
[1765559807274,0.01023567,90611.0,90605.0,0.01103691]
[1765559807472,0.01023567,90612.0,90609.0,0.01103643]
[1765559807675,0.01023567,90614.0,90603.0,0.01103716]
[1765559807930,0.01023567,90613.0,90604.0,0.01705627]
[1765559808163,0.01023567,90612.0,90606.0,0.01103679]
[1765559808295,0.01023567,90611.0,90608.0,0.01103655]
[1765559808492,0.01023567,90610.0,90608.0,0.01103655]
[1765559808689,0.01023567,90611.0,90607.0,0.01103667]
[1765559809031,0.01023567,90617.0,90610.0,0.0110363]
[1765559809231,0.002,90613.0,90610.0,0.0110363]
[1765559809445,0.00035615,90611.0,90610.0,0.0110363]
[1765559809599,0.01059182,90611.0,90610.0,0.23176248]
[1765559810393,0.01059182,90611.0,90610.0,0.23337535]
[1765559810596,0.01059182,90611.0,90610.0,0.27656335]
[1765559810597,0.00135615,90611.0,90610.0,0.27656335]
[1765559811022,0.01159182,90611.0,90610.0,0.00161287]
[1765559811521,0.01059182,90611.0,90605.0,0.01103691]
[1765559811723,0.01023567,90610.0,90609.0,0.26391662]
[1765559811939,0.01023567,90610.0,90609.0,0.26552949]
[1765559812159,0.01056215,90610.0,90609.0,0.26552949]
[1765559812612,0.00032648,90610.0,90609.0,0.31554788]
[1765559813187,0.00032648,90610.0,90609.0,0.60624788]
[1765559814377,0.00017648,90610.0,90609.0,0.55622949]
[1765559814582,0.00017648,90610.0,90609.0,0.26652949]
[1765559815612,0.00017648,90610.0,90609.0,0.31754788]
[1765559817037,0.00017648,90610.0,90609.0,0.26752949]
[1765559820879,0.00017648,90610.0,90609.0,0.00361287]
[1765559821483,0.00017648,90610.0,90609.0,0.22434149]
[1765559821661,0.00017648,90610.0,90609.0,0.26752949]
[1765559821861,0.00017648,90610.0,90609.0,0.22334149]
[1765559822207,0.00017648,90610.0,90609.0,0.26652949]
[1765559822530,0.00017648,90610.0,90609.0,0.26552949]
[1765559823603,0.00017648,90610.0,90609.0,0.26652949]
[1765559823750,0.00017648,90610.0,90609.0,0.02117287]
[1765559823949,0.00017648,90610.0,90609.0,0.00361287]
[1765559824744,0.00017648,90610.0,90609.0,0.22434149]
[1765559824945,0.00017648,90610.0,90609.0,0.26752949]
[1765559825156,0.00017648,90610.0,90609.0,0.26652949]
[1765559825558,0.00017648,90610.0,90609.0,0.26552949]
[1765559826076,0.00117648,90610.0,90609.0,0.26552949]
[1765559826525,0.00117648,90610.0,90609.0,0.26652949]
[1765559826934,0.00017648,90610.0,90609.0,0.26652949]
[1765559827378,0.00017648,90610.0,90609.0,0.26752949]
[1765559827553,0.00017648,90610.0,90609.0,0.55822949]
[1765559829384,0.00017648,90610.0,90609.0,0.60824788]
[1765559829585,0.00017648,90610.0,90609.0,0.64734556]
[1765559829965,0.00038725,90625.0,90624.0,0.55458009]
[1765559830163,0.00038725,90625.0,90624.0,0.57375296]
[1765559830609,0.00038725,90625.0,90624.0,0.62377135]
[1765559831618,0.00038725,90625.0,90624.0,0.62477135]
[1765559831977,0.00038725,90625.0,90624.0,0.62377135]
[1765559832183,0.00038725,90625.0,90624.0,0.62777135]
[1765559832391,0.00138725,90625.0,90624.0,0.62777135]
[1765559832754,0.00138725,90625.0,90624.0,0.643969]
[1765559832959,0.00038725,90625.0,90624.0,0.643969]
[1765559833312,0.00038725,90625.0,90624.0,0.647969]
[1765559834136,0.00038725,90625.0,90624.0,0.630409]
[1765559834302,0.00038725,90625.0,90624.0,0.73949347]
[1765559834511,0.00038725,90625.0,90624.0,0.68110614]
[1765559834928,0.01102815,90677.0,90656.0,0.26380003]
[1765559835143,0.00020617,90658.0,90657.0,0.01756]
[1765559835512,0.00020617,90658.0,90656.0,0.26380003]
[1765559835708,0.00020617,90658.0,90657.0,0.01756]
[1765559836195,0.00020617,90658.0,90657.0,0.01917287]
[1765559836394,0.00120617,90658.0,90657.0,0.06236087]
[1765559836593,0.00120617,90658.0,90657.0,0.35306087]
[1765559836804,0.00120617,90658.0,90657.0,0.40307926]
[1765559836950,0.00020617,90658.0,90657.0,0.40307926]
[1765559837161,2.0,90700.0,90657.0,0.35989126]
[1765559837367,2.00011611,90700.0,90692.0,0.01102633]
[1765559837598,2.00011611,90700.0,90689.0,0.01102669]
[1765559837746,2.00011611,90700.0,90687.0,0.043188]
[1765559838559,0.01102547,90699.0,90687.0,0.043188]
[1765559839060,0.0110256,90698.0,90687.0,0.043188]
[1765559839330,2.00311611,90700.0,90692.0,0.01102633]
[1765559839480,0.01836801,90699.0,90686.0,0.01756]
[1765559839934,0.01836801,90699.0,90689.0,0.01102669]
[1765559840098,0.003,90699.0,90693.0,0.0110262]
[1765559840297,0.003,90699.0,90690.0,0.01102657]
[1765559840661,0.003,90699.0,90693.0,0.0110262]
[1765559840837,0.003,90699.0,90694.0,0.01102608]
[1765559841062,0.003,90699.0,90696.0,0.01102584]
[1765559841414,2.00011611,90700.0,90694.0,0.22052175]
[1765559841631,0.003,90699.0,90693.0,0.0110262]
[1765559841845,0.003,90699.0,90694.0,0.01756]
[1765559841846,0.23154121,90697.0,90694.0,0.01756]
[1765559842049,0.003,90699.0,90694.0,0.01756]
[1765559842283,0.01102596,90695.0,90681.0,0.01102766]
[1765559842507,2.00211611,90700.0,90687.0,0.01102693]
[1765559842715,2.00211611,90700.0,90696.0,0.01102584]
[1765559842922,2.00011611,90700.0,90693.0,0.0110262]
[1765559843130,2.00011611,90700.0,90694.0,0.01102608]
[1765559843380,0.003,90699.0,90697.0,0.01102572]
[1765559843537,0.003,90699.0,90698.0,0.043188]
[1765559843754,0.003,90699.0,90697.0,0.22051418]
[1765559844398,0.003,90699.0,90697.0,0.22051446]
[1765559844623,2.00011611,90700.0,90699.0,0.043188]
[1765559844836,2.00211611,90700.0,90696.0,0.05421384]
[1765559844997,2.00211611,90700.0,90694.0,0.01756]
[1765559845502,2.00011611,90700.0,90694.0,0.02858608]
[1765559845705,0.001,90699.0,90694.0,0.02858608]
[1765559845908,0.001,90699.0,90694.0,0.01756]
[1765559846471,0.00257954,90697.0,90695.0,0.01102596]
[1765559846788,0.001,90699.0,90697.0,0.043188]
[1765559846978,2.00011611,90700.0,90699.0,0.043188]
[1765559847175,2.00011611,90700.0,90694.0,0.060748]
[1765559847399,0.04974,90695.0,90683.0,0.01102742]
[1765559847615,0.04974,90695.0,90682.0,0.01102754]
[1765559847616,0.01102645,90691.0,90682.0,0.00634185]
[1765559847779,0.23155559,90691.0,90680.0,0.043188]
[1765559847981,0.01102596,90695.0,90682.0,0.01756]
[1765559848201,0.23154799,90694.0,90683.0,0.01756]
[1765559848459,0.01102633,90692.0,90678.0,0.00506041]
[1765559848614,0.01102742,90683.0,90677.0,0.00506179]
[1765559848817,0.2656856,90691.0,90678.0,0.01756]
[1765559849038,0.01102693,90687.0,90679.0,0.01756]
[1765559849411,0.01102693,90687.0,90680.0,0.01756]
[1765559849630,0.07149,90690.0,90680.0,0.01756]
[1765559850029,0.01102669,90689.0,90681.0,0.01756]
[1765559850242,0.08251657,90690.0,90658.0,0.01103046]
[1765559850243,0.01102839,90675.0,90658.0,0.01103046]
[1765559850458,0.01102839,90675.0,90665.0,0.01756]
[1765559850665,0.01102839,90675.0,90656.0,0.0110307]
[1765559850666,0.01102888,90671.0,90656.0,0.01721913]
[1765559850902,0.22057561,90672.0,90663.0,0.01756]
[1765559851110,0.23160437,90672.0,90663.0,0.01756]
[1765559851327,0.07149,90674.0,90655.0,0.22061595]
[1765559851536,0.07149,90671.0,90653.0,0.01103107]
[1765559851710,0.07149,90671.0,90656.0,0.01756]
[1765559852102,0.01102937,90667.0,90656.0,0.01756]
[1765559852300,0.011029,90670.0,90657.0,0.01103058]
[1765559852504,0.07149,90671.0,90658.0,0.01103046]
[1765559852709,0.01302839,90675.0,90673.0,0.22057168]
[1765559852710,0.002,90675.0,90673.0,0.22057168]
[1765559852894,0.002,90675.0,90674.0,0.00649776]
[1765559853396,0.01102657,90690.0,90672.0,0.23160329]
[1765559853397,0.01102681,90688.0,90672.0,0.23160329]
[1765559853632,0.01102706,90686.0,90671.0,0.01102888]
[1765559853835,0.01102754,90682.0,90672.0,0.01756]
[1765559854035,0.01102718,90685.0,90672.0,0.01756]
[1765559854251,0.01102693,90687.0,90673.0,0.01102864]
[1765559854600,0.001,90675.0,90674.0,0.01102851]
[1765559854817,0.001,90675.0,90674.0,0.01730449]
[1765559855024,0.00011609,90688.0,90684.0,0.0110273]
[1765559855234,0.00011609,90688.0,90685.0,0.01102718]
[1765559855446,0.00011609,90688.0,90686.0,0.23809967]
[1765559855653,0.00011609,90688.0,90687.0,0.043188]
[1765559856132,0.00011609,90688.0,90687.0,0.01756]
[1765559857456,0.00211609,90688.0,90687.0,0.01756]
[1765559857609,0.34388243,90688.0,90687.0,0.01756]
[1765559857810,0.34388243,90688.0,90666.0,0.043188]
[1765559857811,0.01102779,90680.0,90666.0,0.043188]
[1765559858011,0.01102791,90679.0,90664.0,0.00619321]
[1765559858250,0.22055239,90682.0,90668.0,0.01102924]
[1765559858251,0.01102754,90682.0,90668.0,0.01102924]
[1765559858463,0.01102742,90683.0,90670.0,0.011029]
[1765559858613,0.30306438,90684.0,90669.0,0.01102912]
[1765559858816,0.01102742,90683.0,90670.0,0.011029]
[1765559859018,0.07149,90684.0,90673.0,0.01102864]
[1765559859223,0.02939494,90687.0,90672.0,0.01102876]
[1765559859426,0.01102742,90683.0,90669.0,0.01102912]
[1765559859625,0.01102779,90680.0,90666.0,0.01102949]
[1765559859944,0.01102815,90677.0,90667.0,0.01756]
[1765559860112,0.01102827,90676.0,90667.0,0.01756]
[1765559860512,0.01102815,90677.0,90667.0,0.01756]
[1765559860752,0.01102961,90665.0,90651.0,0.01103131]
[1765559860909,0.01102912,90669.0,90654.0,0.01103095]
[1765559860910,0.04974,90666.0,90654.0,0.01103095]
[1765559861109,0.01102912,90669.0,90656.0,0.0110307]
[1765559861110,0.01102924,90668.0,90656.0,0.0110307]
[1765559861521,0.08251888,90671.0,90658.0,0.01103046]
[1765559861726,0.29404662,90680.0,90666.0,0.01102949]
[1765559861900,0.07149,90691.0,90676.0,0.01102827]
[1765559862076,0.01042904,90688.0,90675.0,0.01102839]
[1765559862285,0.02133988,90687.0,90673.0,0.01102864]
[1765559862489,0.01102766,90681.0,90669.0,0.01102912]
[1765559862694,0.02939567,90681.0,90667.0,0.01756]
[1765559862900,0.01836801,90681.0,90669.0,0.01102912]
[1765559863114,0.01836801,90681.0,90674.0,0.22057029]
[1765559863425,0.01031295,90685.0,90679.0,0.01102791]
[1765559863643,0.01031295,90685.0,90682.0,0.01102754]
[1765559863851,0.00011609,90688.0,90684.0,0.23157328]
[1765559864093,0.00011609,90688.0,90685.0,0.01102718]
[1765559864702,0.00011609,90688.0,90680.0,0.01102779]
[1765559864837,0.00011609,90688.0,90686.0,0.01756]
[1765559865052,0.00111609,90688.0,90686.0,0.01756]
[1765559865570,0.00111609,90688.0,90685.0,0.01756]
[1765559866046,0.00111609,90688.0,90683.0,0.01102742]
[1765559866211,0.00011609,90688.0,90685.0,0.01756]
[1765559866586,0.00111609,90688.0,90685.0,0.02858718]
[1765559866796,0.00111609,90688.0,90686.0,0.2205412]
[1765559867019,0.00011609,90688.0,90687.0,0.043188]
[1765559867237,0.00011609,90688.0,90687.0,0.04480087]
[1765559867453,0.00111609,90688.0,90687.0,0.04480087]
[1765559867944,0.00011609,90688.0,90687.0,0.04480087]
[1765559868250,0.00111609,90688.0,90687.0,0.04480087]
[1765559868455,0.00111609,90688.0,90687.0,0.00161287]
[1765559868659,0.00342901,90688.0,90687.0,0.04480087]
[1765559869256,0.00342901,90688.0,90687.0,0.06236087]
[1765559869489,0.00342901,90688.0,90687.0,0.22215164]
[1765559869490,0.00242901,90688.0,90687.0,0.22215164]